{"text_format":"1","workbook":"xlsx","n_sheets":8,"sheets":["Lists","Summary","Door Entry Fee","WAG Gymnasts","WAG Coaches","MAG Gymnasts","MAG Coaches","Pswd"],"not_rendered":{"charts":0,"images":1,"macros":1,"external_links":1,"defined_names":59,"comments":1,"pivot_tables":0},"unopened":[],"bounds":{"document_bytes":16777216,"sheet_cells":100000,"rows_first":2000,"rows_last":500,"rows_between":2000,"halvings":0,"cell_chars":16384,"cell_head_chars":4096},"cells_cut":0,"cells_raw":0,"read":"whole","date_system":"1900"}

{"sheet":"Lists","index":0,"n_rows":158,"n_cols":35,"rows_kept":158,"cut":false,"hidden":true,"merged":[]}
["Lists used on other sheets…",null,null,"Year of Meet: ",2022,null,null,"Meet Name: ","Queen City Invitational 2022"]
[null,null,null,null,null,null,null,"Meet Dates: ","February 25, 26, 27, 2022"]
["Note: ","Hide this sheet normally, ",null,null,null,null,null,"Entry Deadline: ","January 25, 2022"]
[null,"  especially before sending the file to clubs.",null,null,null,null,null,"Late Entrry Fee: ",25]
[]
[null,"FEES:",null,null,null,null,null,"Host Name: ","Queen City Gymnastics Club"]
[null,"Level","$/gymnast","# gymnasts",null,null,null,"Host Addr: ","455 Maxwell Crescent"]
["WAG","Developmental",0,{"$f":"COUNTIF('WAG Gymnasts'!$M$5:$M$64,$E8)","v":0},1,null,null,"Host City: ","Regina, SK"]
["WAG","Inter-Club Levels 1, 2, 3, 4",105,{"$f":"COUNTIF('WAG Gymnasts'!$M$5:$M$64,$E9)","v":0},2,null,null,"Host Postal Code: ","S4N 5X9"]
["WAG","CCP 3-10",130,{"$f":"COUNTIF('WAG Gymnasts'!$M$5:$M$64,$E10)","v":0},3,null,null,"Host Phone #: ","(306) 757-5311"]
["WAG","Xcel Bronze, Silver, Gold, Platinum, Diamond",130,{"$f":"COUNTIF('WAG Gymnasts'!$M$5:$M$64,$E11)","v":0},4]
["WAG","Aspire 1, 2",130,{"$f":"COUNTIF('WAG Gymnasts'!$M$5:$M$64,$E12)","v":0},5]
["WAG","HP Novice, Jr, Sr",130,{"$f":"COUNTIF('WAG Gymnasts'!$M$5:$M$64,$E13)","v":0},6]
["WAG","~","~","~",7]
["WAG","Registered for Western Trials",0,{"$f":"COUNTIF('WAG Gymnasts'!O5:O64,\"Yes\")","v":0},8]
["WAG","Registered for National Trials",0,{"$f":"COUNTIF('WAG Gymnasts'!P5:P64,\"Yes\")","v":0},9]
["WAG",null,null,null,10,null,null,"List of Months",null,"Yes No Reply"]
["MAG","Developmental",0,{"$f":"COUNTIF('MAG Gymnasts'!N5:N64,$E18)","v":0},1,null,1,"Jan",null,"Yes"]
["MAG","Interclub:  JO-3",105,{"$f":"COUNTIF('MAG Gymnasts'!N5:N64,$E19)","v":0},2,null,2,"Feb",null,"No"]
["MAG","JO 4, 5, & 6",130,{"$f":"COUNTIF('MAG Gymnasts'!N5:N64,$E20)","v":0},3,null,3,"Mar"]
["MAG","Prov:  Provincial 3, 4, & 5",130,{"$f":"COUNTIF('MAG Gymnasts'!N5:N64,$E21)","v":0},4,null,4,"Apr"]
["MAG","National Open",130,{"$f":"COUNTIF('MAG Gymnasts'!N5:N64,$E22)","v":0},5,null,5,"May"]
["MAG",null,null,{"$f":"COUNTIF('MAG Gymnasts'!N10:N69,$E23)","v":0},6,null,6,"Jun"]
["MAG",null,null,{"$f":"COUNTIF('MAG Gymnasts'!N11:N70,$E24)","v":0},7,null,7,"Jul"]
["MAG",null,null,{"$f":"COUNTIF('MAG Gymnasts'!N12:N71,$E25)","v":0},8,null,8,"Aug"]
["MAG",null,null,{"$f":"COUNTIF('MAG Gymnasts'!N13:N72,$E26)","v":0},9,null,9,"Sep"]
[null,null,null,null,null,null,10,"Oct"]
[null,"Note:  when fee is $0, that row is greyed out ",null,null,null,null,11,"Nov"]
[null,"on the 'Summary' sheet for fees.",null,null,null,null,12,"Dec"]
[null,null,null,null,null,null,null,null,null,null,null,null,null,null,null,null,"Note: Change these age groups within the categories as needed - see Gym Sask guide in November each year for the following season."]
[null,"The summary sheet will use these labels too.",null,null,null,null,null,null,null,null,null,null,"Year of Competition: ",2022,"**  Ages shown are as of end of previous year (aka the start of this year).  "]
[null,null,null,null,null,null,null,null,null,null,"Index","Code for",null,"Year Born:",{"$f":"N31-7","v":2015},{"$f":"O32-1","v":2014},{"$f":"P32-1","v":2013},{"$f":"Q32-1","v":2012},2011,2010,2009,2008,2007,2006,2005,2004,2003,2002,2001,2000,1999,1998]
[null,null,null,null,null,null,null,null,null,"WAG_PopUpList_Categories","to Cat.","Fees Level","WAG_Categories  ",{"$f":"\"Age at start of \" &$N$31&\":\"","v":"Age at start of 2022:"},{"$f":"$N$31-O32-1","v":6},{"$f":"O33+1","v":7},{"$f":"P33+1","v":8},9,10,11,12,13,14,15,16,17,18,19,20,21,22,23]
[null,null,null,null,null,null,null,null,null,"InterClub Level 1",1,2,"Interclub: ","InterClub Level 1","2015","2014","2013","2012","2011","2010 & before","2011 & before","2011 & before","2011 & before","2011 & before","2011 & before","2011 & before","2011 & before","2011 & before","2011 & before","2011 & before","2011 & before","2011 & before",null,null,"InterClub Level 1"]
[null,null,null,null,null,null,null,null,null,"InterClub Level 2",2,2,"Interclub: ","InterClub Level 2","2015","2014","2013","2012","2011","2010 & before","2010 & before","2010 & before","2010 & before","2010 & before","2010 & before","2010 & before","2010 & before","2010 & before","2010 & before","2010 & before","2010 & before","2010 & before",null,null,"InterClub Level 2"]
[null,null,null,null,null,null,null,null,null,"InterClub Level 3",3,2,"Interclub: ","InterClub Level 3","2015 & after","2015 & after","2015 & after","2015 & after","2011 & before","2011 & before","2011 & before","2011 & before","2011 & before","2011 & before","2011 & before","2011 & before","2011 & before","2011 & before","2011 & before","2011 & before","2011 & before","2011 & before",null,null,"InterClub Level 3"]
[null,null,null,null,null,null,null,null,null,"InterClub Level 4",4,2,"Interclub: ","InterClub Level 4","2015 & after","2015 & after","2015 & after","2015 & after","2015 & after","2015 & after","2015 & after","2015 & after","2015 & after","2015 & after","2015 & after","2015 & after","2015 & after","2015 & after","2015 & after","2015 & after","2015 & after","2015 & after",null,null,"InterClub Level 4"]
[null,null,null,null,null,null,null,null,null,"CCP-3",5,3,"Provincial: ","CCP-3","X","X",2013,2012,2011,2010,2009,2008,2007,2006,2005,2004,2003,2002,2001,2000,1999,1998,null,"√","JO-3"]
[null,null,null,null,null,null,null,null,null,"CCP-4",6,3,"Provincial: ","CCP-4","X","X","2011-2013","2011-2013","2011-2013",2010,"2009 & before","2009 & before","2009 & before","2009 & before","2009 & before","2009 & before","2009 & before","2009 & before","2009 & before","2009 & before","2009 & before","2009 & before",null,"√","JO-4"]
[null,null,null,null,null,null,null,null,null,"CCP-5",7,3,"Provincial: ","CCP-5","X","X","2013-1998","2013-1998","2013-1998","2013-1998","2013-1998","2013-1998","2013-1998","2013-1998","2013-1998","2013-1998","2013-1998","2013-1998","2013-1998","2013-1998","2013-1998","2013-1998",null,"√","JO-5"]
[null,null,null,null,null,null,null,null,null,"CCP-6",8,3,"Provincial: ","CCP-6","X","X","2009 & after","2009 & after","2009 & after","2009 & after","2009 & after","2008 & before","2008 & before","2008 & before","2008 & before","2008 & before","2008 & before","2008 & before","2008 & before","2008 & before","2008 & before","2008 & before",null,"√","JO-6"]
[null,null,null,null,null,null,null,null,null,"CCP-7",9,3,"Provincial: ","CCP-7","X","X","X","2012 & before","2012 & before","2012 & before","2012 & before","2012 & before","2012 & before","2012 & before","2012 & before","2012 & before","2012 & before","2012 & before","2012 & before","2012 & before","2012 & before","2012 & before",null,"√","JO-7"]
[null,null,null,null,null,null,null,null,null,"CCP-8",10,3,"Provincial: ","CCP-8","X","X","2009 & after","2009 & after","2009 & after","2009 & after","2009 & after","2008 & before","2008 & before","2008 & before","2008 & before","2008 & before","2008 & before","2008 & before","2008 & before","2008 & before","2008 & before","2008 & before",null,"√","JO-8"]
[null,null,null,null,null,null,null,null,null,"CCP-9 (Prov)",11,3,"Provincial: ","CCP-9 (Prov)","X","X","X","X","X","X","X","2008 & before","2008 & before","2008 & before","2008 & before","2008 & before","2008 & before","2008 & before","2008 & before","2008 & before","2008 & before","2008 & before",null,"√","JO-9 (Prov)"]
[null,null,null,null,null,null,null,null,null,"CCP-9 (Nat'l)",12,3,"National: ","CCP-9 (Nat'l)","X","X","X","X","2009-2011","2009-2011","2009-2011","X","X","X","X","X","X","X","X","X","X","X",null,"√","JO-9 (Nat'l)"]
[null,null,null,null,null,null,null,null,null,"CCP-10",13,3,"National: ","CCP-10","X","X","X","X","X","2007 & 2010","2007 & 2010","2007 & 2010","2007 & 2010","2006 & before","2006 & before","2006 & before","2006 & before","2006 & before","2006 & before","2006 & before","2006 & before","2006 & before",null,"√","JO-10"]
[null,null,null,null,null,null,null,null,null,"Aspire 1 (Prov)",14,5,"Aspire: ","Aspire 1 (Prov)","X","X","2011-2013","2011-2013","2011-2013","X","X","X","X","X","X","X","X","X","X","X","X","X",null,"√","Aspire 1 (Prov)"]
[null,null,null,null,null,null,null,null,null,"Aspire 2 (Nat'l)",15,5,"Aspire: ","Aspire 2 (Nat'l)","X","X","X","2010-2012","2010-2012","2010-2012","X","X","X","X","X","X","X","X","X","X","X","X",null,"√","Aspire 2 (Nat'l)"]
[null,null,null,null,null,null,null,null,null,"HP Novice",16,6,"National: ","HP Novice","X","X","X","X","2009-2011","2009-2011","2009-2011","X","X","X","X","X","X","X","X","X","X","X",null,"√","HP Novice"]
[null,null,null,null,null,null,null,null,null,"HP Junior",17,6,"National: ","HP Junior","X","X","X","X","X","X","2007-2009","2007-2009","2007-2009","X","X","X","X","X","X","X","X","X",null,"√","HP Junior"]
[null,null,null,null,null,null,null,null,null,"HP Senior",18,6,"National: ","HP Senior","X","X","X","X","X","X","X","X","2007 & before","2007 & before","2007 & before","2007 & before","2007 & before","2007 & before","2007 & before","2007 & before","2007 & before","2007 & before",null,"√","HP Senior"]
[null,null,null,null,null,null,null,null,null,"Xcel Bronze",19,4,"Xcel","Xcel Bronze","2015","2014","2013","2012","2011","2010","2009","2008","2007",null,null,null,null,null,null,null,null,null,null,null,"Xcel Bronze"]
[null,null,null,null,null,null,null,null,null,"Xcel Silver",20,4,"Xcel","Xcel Silver","2015","2014","2013","2012","2011","2010","2009","2008","2007",null,null,null,null,null,null,null,null,null,null,null,"Xcel Silver"]
[null,null,null,null,null,null,null,null,null,"Xcel Gold",21,4,"Xcel","Xcel Gold","X","X","2013","2012","2011","2010","2009","2008","2007 & before","2007 & before","2007 & before","2007 & before","2007 & before","2007 & before","2007 & before","2007 & before","2007 & before","2007 & before",null,null,"Xcel Gold"]
[null,null,null,null,null,null,null,null,null,"Xcel Platinum",22,4,"Xcel","Xcel Platinum","X","X","2013 & before","2013 & before","2013 & before","2013 & before","2013 & before","2013 & before","2013 & before","2013 & before","2013 & before","2013 & before","2013 & before","2013 & before","2013 & before","2013 & before","2013 & before","2013 & before",null,null,"Xcel Platinum"]
[null,null,null,null,null,null,null,null,null,"Xcel Diamond",23,4,"Xcel","Xcel Diamond","X","X","X","2012 & before","2012 & before","2012 & before","2012 & before","2012 & before","2012 & before","2012 & before","2012 & before","2012 & before","2012 & before","2012 & before","2012 & before","2012 & before","2012 & before","2012 & before",null,null,"Xcel Diamond"]
[]
[]
[]
[]
[]
[]
[null,null,null,null,null,null,null,null,null,null,null,null,null,null,"**  Ages shown are as of end of previous year (aka the start of this year).  ",null,null,null,null,null,"Probably not needed, no sublevels."]
[]
[null,null,null,null,null,null,null,null,null,null,"Index","Code for",null,"Year Born:",{"$f":"N31-7","v":2015},{"$f":"O65-1","v":2014},{"$f":"P65-1","v":2013},2012,2011,2010,2009,2008,2007,2006,2005,2004,2003,2002,2001,2000,1999,1998]
[null,null,null,null,null,null,null,null,null,"MAG_PopUpList_Categories","to Cat.","Fees Level",null,"MAG_Categories",{"$f":"O33","v":6},{"$f":"P33","v":7},8,9,10,11,12,13,14,15,16,17,18,19,20,21,22,23]
[null,null,null,null,null,null,null,null,null,"Developmental",1,1,"InterClub: ","Developmental",null,null,null,null,null,null,"X","X","X","X","X","X","X","X","X","X","X","X"]
[null,null,null,null,null,null,null,null,null,"InterClub JO-1",1,2,"InterClub: ","InterClub JO-1"]
[null,null,null,null,null,null,null,null,null,"InterClub JO-2",2,2,"InterClub: ","InterClub JO-2"]
[null,null,null,null,null,null,null,null,null,"InterClub JO 3",3,2,"InterClub: ","InterClub JO 3"]
[null,null,null,null,null,null,null,null,null,"JO-4",4,3,"Jr. Olympic: ","JO-4","X","2013-2014","2013-2014","2011-2012","2011-2012","2010 & before"]
[null,null,null,null,null,null,null,null,null,"JO-5",5,3,"Jr. Olympic: ","JO-5","X","2013-2014","2013-2014","2011-2012","2011-2012","2010 & before"]
[null,null,null,null,null,null,null,null,null,"JO-6",6,3,"Jr. Olympic: ","JO-6","X","X","2012-2013","2012-2013","2011 & before","2011 & before","2011 & before","2011 & before","2011 & before","2011 & before","2011 & before","2011 & before","2011 & before","2011 & before","2011 & before","2011 & before","2011 & before","2011 & before"]
[null,null,null,null,null,null,null,null,null,"Prov. Level 3",7,4,"Provincial: ","Prov. Level 3","X","X","X","X","2011 & before","2011 & before","2011 & before","2011 & before","2011 & before","2011 & before","2011 & before","2011 & before","2011 & before","2011 & before","2011 & before","2011 & before","2011 & before","2011 & before"]
[null,null,null,null,null,null,null,null,null,"Prov. Level 4",8,4,"Provincial: ","Prov. Level 4","X","X","X","X","X","X","2009 & before","2009 & before","2009 & before","2009 & before","2009 & before","2009 & before","2009 & before","2009 & before","2009 & before","2009 & before","2009 & before","2009 & before"]
[null,null,null,null,null,null,null,null,null,"Prov. Level 5",9,4,"Provincial: ","Prov. Level 5","X","X","X","X","X","X","2006-2009","2006-2009","2006-2009","2006-2009","X","X","X","X","X","X","X","X"]
[null,null,null,null,null,null,null,null,null,"Nat'l Open",10,5,"National: ","Nat'l Open","X","X","X","X","X","X","X","2008 & before","2008 & before","2008 & before","2008 & before","2008 & before","2008 & before","2008 & before","2008 & before","2008 & before","2008 & before","2008 & before"]
[null,null,null,null,null,null,null,null,null,null,11,null,"National: ","Nat'l Junior"]
[null,null,null,null,null,null,null,null,null,null,12,null,"National: ","Nat'l Senior"]
[null,null,null,null,null,null,null,null,null,null,13,null,"National: ","Nat'l Junior (14-15)"]
[null,null,null,null,null,null,null,null,null,null,14,null,"National: ","Nat'l Junior (16-17)"]
[null,null,null,null,null,null,null,null,null,null,null,null,"National: ","Nat'l Senior (18)"]
[null,null,null,null,null,null,null,null,null,null,null,0,"National: ","Nat'l Senior (19+)"]
[null,null,null,null,null,null,null,null,null,null,null,0]
[]
[]
[]
[]
[]
[]
[]
[]
[]
[]
[]
[]
[]
[null,null,null,null,null,null,null,null,null,null,null,null,null,null,null,"IF(ISBLANK(H5),\"\",H5&\"  \"&INDEX(WAG_SubCategories,J5,K5))"]
[null,null,null,null,null,null,null,null,null,null,null,null,null,null,"Category & level Formula:"]
[null,null,null,null,null,null,null,null,null,null,null,null,null,null,"DO NOT CHANGE;  reference for future use."]
[null,null,null,null,null,null,null,null,null,null,null,null,null,null,"For use in column 'M' on the WAG sheet once the real levels are known"]
[]
[]
[]
[]
[]
[]
[]
[null,null,null,null,null,null,"Invited Gym Clubs…"]
[]
[null,null,null,null,null,null,"Prov.","Club_Abbr","Club_Name","Club_City"]
[null,null,null,null,null,1," SK","Battleford","Battlefords Gymnastics Club","North Battleford"]
[null,null,null,null,null,2," SK","Calico","Calico Gym Club","Humboldt"]
[null,null,null,null,null,3," SK","Can-Am","Can-Am Gymnastics Club","Saskatoon"]
[null,null,null,null,null,4," SK","Carnduff","Carnduff Gymnastics Club","Carnduff"]
[null,null,null,null,null,5," SK","Esterhazy","Esterhazy Gym Club","Esterhazy"]
[null,null,null,null,null,6," SK","Estevan","Estevan Gymnastics Club","Estevan"]
[null,null,null,null,null,7," SK","Gelico","Gelico Gymnastics Club","Swift Current"]
[null,null,null,null,null,8," SK","Gym Adv","Gymnastics Adventure Inc.","Regina"]
[null,null,null,null,null,9," SK","Gymtastiks-SK","Gymtastiks Gymnastics Club","Moose Jaw"]
[null,null,null,null,null,10," SK","Marian","Marian Gymnastics Club","Saskatoon"]
[null,null,null,null,null,11," SK","Nipawin","Nipawin Revolution Gymnastics","Nipawin"]
[null,null,null,null,null,12," SK","Outlook","Outlook Gymnastics Club","Outlook"]
[null,null,null,null,null,13," SK","PA Aerials","Aerials Gymnastics Club","Prince Albert"]
[null,null,null,null,null,14," SK","Queen City ","Queen City Gymnastics Club","Regina"]
[null,null,null,null,null,15," SK","Rosetown","Rosetown Gym Club","Rosetown"]
[null,null,null,null,null,16," SK","Ross","Ross Gym and Fit","Wawota"]
[null,null,null,null,null,17," SK","Springers - SK","Springers Gym Club","Yorkton"]
[null,null,null,null,null,18," SK","Taiso","Taiso Gymnastics Club","Saskatoon"]
[null,null,null,null,null,19," SK","Tisdale","Tisdale Twisters Gymnastics Club","Tisdale"]
[null,null,null,null,null,20," SK","Turn-a-Row","Turn-A-Row Gymnastics Club","Wadena"]
[null,null,null,null,null,21," SK","Weyburn","Weyburn Gymnastics Club","Weyburn"]
[null,null,null,null,null,22," SK","Zero Gravity","Zero Gravity Gymnastics Club","Gull Lake"]
[null,null,null,null,null,null," SK-end","______________","~","~"]
[null,null,null,null,null,1,"AB","Altadore-AB","Altadore Gymnastics Club","Calgary, AB"]
[null,null,null,null,null,2,"AB","Calgary Gym-AB","Calgary Gymnastics Centre","Calgary, AB"]
[null,null,null,null,null,3,"AB","Capital City-AB","Capital City Gymnastics Club","Edmonton, AB"]
[null,null,null,null,null,4,"AB","Champions-AB","Champions Gymnastics Club","Edmonton, AB"]
[null,null,null,null,null,5,"AB","Dynamix-AB","Dynamix Gymnastics Club","St. Albert"]
[null,null,null,null,null,6,"AB","Exalta-AB","Exalta Gymnastics Club","Red Deer, AB"]
[null,null,null,null,null,7,"AB","Gymtastics-AB","Gymtastics ","Calgary, AB"]
[null,null,null,null,null,8,"AB","Mtn Shadows-AB","Mountain Shadows Gymnastics Club","Okotoks, AB"]
[null,null,null,null,null,9,"AB","Ortona-AB","Ortona Gymnastics Club","Edmonton, AB"]
[null,null,null,null,null,10,"AB","Phoenix-AB","Phoenix Gymnastics Centre","Edmonton"]
[null,null,null,null,null,11,"AB","Salta-AB","Salta Gymnastics Club","Medicine Hat, AB"]
[null,null,null,null,null,12,"AB","SG Aerials-AB","Spruce Grove Aerials Gymnastics Club","Spruce Grove, AB"]
[null,null,null,null,null,13,"AB","Stampede-AB","Stampede City Gymnastics Club","Calgary, AB"]
[null,null,null,null,null,14,"AB","Westwind-AB","Westwind Gymnastics Club","Lethbridge, AB"]
[null,null,null,null,null,null,"AB-end","______________","~","~"]
[null,null,null,null,null,1,"MB","Eagles - MB","Eagles Gymnastics Club","Brandon, MB"]
[null,null,null,null,null,2,"MB","Cheetahs - MB","Sawan River Cheetahs Gymnastics Club","Swan River, MB"]
[null,null,null,null,null,3,"MB","Panthers-MB","Panthers Gymnastics Club","Winnipeg, MB"]
[null,null,null,null,null,4,"ON","Kenora - MB","Kenora Gymnastics Club","Kenora, Ontario"]
[null,null,null,null,null,5,"YT","Polarettes - YT","Polarettes Gymnastics Club","Whitehorse, YT"]
[null,null,null,null,null,6,"YT","Yellowknife - NT","Yellowknife Gymnastics Club","Yellowknife, NT"]
[null,null,null,null,null,null,"NT"]
[]
[null,null,null,null,null,null,"Other-end","______________","~","~"]

{"sheet":"Summary","index":1,"n_rows":43,"n_cols":12,"rows_kept":43,"cut":false,"hidden":false,"merged":[[20,8,20,10],[21,8,21,10],[19,8,19,10],[14,4,14,5],[16,8,16,10],[0,4,0,6],[14,8,14,10],[15,8,15,10],[17,8,17,10],[18,8,18,10],[18,4,18,5],[15,4,15,5],[12,4,12,5],[5,5,5,6]]}
["Hide",null,null,null,{"$f":"Meet_Name","v":"Queen City Invitational 2022"}]
["This",null,null,null,{"$f":"Meet_Dates","v":"February 25, 26, 27, 2022"}]
["Col."]
[null,null,null,null,"MEET REGISTRATION FOR CLUBS"]
[]
[null,null,null,null,"ENTRY DEADLINE: ",{"$f":"Entry_Deadline","v":"January 25, 2022"}]
[]
[null,null,null,null,"When completed, email this file to: ","QCGC Meet Director"]
[]
[]
[null,null,null,"Choose your club:  "]
["index",null,null,"Abbrev.","Club Name",null,"City"]
[{"$f":"MATCH(D13,Club_Abbr,0)","v":{"$error":"#N/A"}},null,"Start here -----> ",null,{"$f":"IF(ISBLANK(This_Clubs_Abbrev),\"\",INDEX(Lists!I112:I158,A13))","v":""},null,{"$f":"IF(ISBLANK(This_Clubs_Name),\"\",INDEX(Club_City,A13))","v":""}]
[null,null,null,"Contact person:  ",null,null,null,null,null,null,null,"Age groups as per GymSask notice October 19, 2021"]
[null,null,null,"Name:",null,null,null,null,"Please make one cheque payable to …"]
[null,null,null,"Address:",null,null,null,null,{"$f":"Host_Name","v":"Queen City Gymnastics Club"}]
[null,null,null,"City  /  PC:",null,null,null,null,{"$f":"\"Send the cheque by \"&Entry_Deadline& \" to:\"","v":"Send the cheque by January 25, 2022 to:"}]
[null,null,null,null,null,null,null,null,{"$f":"Host_Addr & \"  ~  \" & Host_City & \"  ~  \" & Host_Postal_Code","v":"455 Maxwell Crescent  ~  Regina, SK  ~  S4N 5X9"}]
[null,null,null,"Email:",null,null,null,null,{"$f":"\"Phone:  \" & Host_Phone","v":"Phone:  (306) 757-5311"}]
[null,null,null,"Phone #  /  Cell #:"]
[null,null," ",null,null,null,null,null,"E-Transfer also acceptable …"]
[null,null,"Fee Summary…","(Based on the Athlete Sheets)",null,null,null,null,"accounting@qcgc.ca"]
[null,null,"Discipline / Type","# Gymnasts","Fee per gymnast","Amount   "]
[1,1,{"$f":"INDEX(Fees_Level_Names_WAG,B24)","v":"Developmental"},{"$f":"INDEX(WAG_NumGymnasts,$A24)","v":0},{"$f":"INDEX(WAG_Fees,$A24)","v":0},{"$f":"Summ_NumGymnasts*Summ_FeesPerGymnast","v":0},null,null,"Registration is not complete until fees and athlete release forms have been received."]
[2,2,{"$f":"INDEX(Fees_Level_Names_WAG,B25)","v":"Inter-Club Levels 1, 2, 3, 4"},0,105,0,null,null,{"$f":"\"NOTE:    A late entry fee of $\"&Late_Entry_Fee&\" per gymnast will be charged.\"","v":"NOTE:    A late entry fee of $25 per gymnast will be charged."}]
[3,3,"CCP 3-10",0,130,0,null,null,"Refunds will be issued only for medical reasons upon receipt of a doctor’s certificate."]
[4,4,"Xcel Bronze, Silver, Gold, Platinum, Diamond",0,130,0]
[5,5,"Aspire 1, 2",0,130,0]
[6,6,"HP Novice, Jr, Sr",0,130,0,{"$f":"\" WAG Gymnasts: \" & SUM(D24:D29)","v":" WAG Gymnasts: 0"}]
[7,7,"~","~","~"]
[8,8,"Registered for Western Trials",0,0,{"$f":"Summ_NumGymnasts*Summ_FeesPerGymnast","v":0},{"$f":"SUM(D24:D32)","v":0}]
[9,9,"Registered for National Trials",null,0,{"$f":"Summ_NumGymnasts*Summ_FeesPerGymnast","v":0}]
[1,1,{"$f":"INDEX(Fees_Level_Names_MAG,B33)","v":"Developmental"},{"$f":"INDEX(MAG_NumGymnasts,$A33)","v":0},{"$f":"INDEX(MAG_Fees,$A33)","v":0},0]
[2,2,"Interclub:  JO-3",0,105,0]
[3,3,"JO 4, 5, & 6",0,130,0]
[4,4,"Prov:  Provincial 3, 4, & 5",0,130,0]
[5,5,"National Open",0,130,0,{"$f":"\" MAG Gymnasts: \" & SUM(D33:D38)","v":" MAG Gymnasts: 0"}]
[6,6,0,0,0,0]
[7,7,0,0,0,0]
[8,8,0,0,0,0,{"$f":"SUM(D33:D41)","v":0}]
[9,9,0,0,0,0,{"$f":"G40&\"  MAG Gymnast\"& IF(G40=1,\"\",\"s\") &\" ($\"&SUM(F33:F41)&\")\"","v":"0  MAG Gymnasts ($0)"}]
[null,null,null,null,"Late Fees:  $25/Gymnast"]
[null,null,null,null,"Total Fees:   ",{"$f":"SUM(F25:F42)","v":0},{"$f":"\" Total # of Gymnasts: \" & SUM(D25:D37)","v":" Total # of Gymnasts: 0"}]

{"sheet":"Door Entry Fee","index":2,"n_rows":49,"n_cols":9,"rows_kept":49,"cut":false,"hidden":false,"merged":[[2,4,2,6],[15,1,15,2],[15,5,15,6],[14,5,14,6]]}
[null,{"$f":"Meet_Name","v":"Queen City Invitational 2022"},null,null,null,null,null,null,{"$f":"Meet_Dates","v":"February 25, 26, 27, 2022"}]
[null,"DOOR ENTRY FEES"]
[null,null,null,"Club:  ",{"$f":"This_Clubs_FullName","v":""}]
[]
[null,"In an effort to reduce contact during our event, there will only be 2 spectators allowed per gymnast per session.  "]
[null,"We normally collect $10 per spectator which includes your program."]
[]
[null,"All spectators must be masked at all times and will show proof of full vaccination or if not fully vaccinated, a negative COVID test "]
[null,"within 48 hrs upon admittance to the facility.  Self-conducted tests will NOT BE ACCEPTED.  Tests will ONLY be accpted if completed by a certified clinic."]
[]
[null,"Refunds will only be made where a medical withdrawal has been accepted."]
[null,"NO REFUNDS will be made where spectator fails to meet our COVID protocals outlined above and in our registration package"]
[]
[null,"Please fill out the following form and submitt it with your club registration.  ",null,null,"          * Discount applied for second spectator, incls one program"]
[null,null,null,null,null,"Choose one"]
[null,"Athlete",null,"Club","Competition","Spectator Entry Fee",null,"Total"]
[null,"First Name","Last Name",null,"Level","1 Person","2 People"]
[1,null,null,{"$f":"IF(ISBLANK(C18),\"\",This_Clubs_Abbrev)","v":""},null,10,17]
[2,null,null,"",null,10,17]
[3,null,null,"",null,10,17]
[4,null,null,"",null,10,17]
[5,null,null,"",null,10,17]
[6,null,null,"",null,10,17]
[7,null,null,"",null,10,17]
[8,null,null,"",null,10,17]
[9,null,null,"",null,10,17]
[10,null,null,"",null,10,17]
[11,null,null,"",null,10,17]
[12,null,null,"",null,10,17]
[13,null,null,"",null,10,17]
[14,null,null,"",null,10,17]
[15,null,null,"",null,10,17]
[16,null,null,"",null,10,17]
[17,null,null,"",null,10,17]
[18,null,null,"",null,10,17]
[19,null,null,"",null,10,17]
[20,null,null,"",null,10,17]
[21,null,null,"",null,10,17]
[22,null,null,"",null,10,17]
[23,null,null,"",null,10,17]
[24,null,null,"",null,10,17]
[25,null,null,"",null,10,17]
[26,null,null,"",null,10,17]
[27,null,null,"",null,10,17]
[28,null,null,"",null,10,17]
[29,null,null,"",null,10,17]
[30,null,null,"",null,10,17]
[]
[null,null,null,null,null,null,"TOTAL SUBMITTED",{"$f":"SUM(H18:H47)","v":0}]

{"sheet":"WAG Gymnasts","index":3,"n_rows":64,"n_cols":18,"rows_kept":64,"cut":false,"hidden":false,"merged":[[1,3,1,7]]}
[null,{"$f":"Meet_Name","v":"Queen City Invitational 2022"},null,"CLUB REGISTRATIONS - WAG GYMNASTS",null,null,null,null,null,null,"Hide Col.","Hide Col.","Hide Col.",null,null,null,null,"Hide Col."]
[null,{"$f":"Meet_Dates","v":"February 25, 26, 27, 2022"},"Club: ",{"$f":"This_Clubs_FullName","v":""}]
[null,"xx"]
[null,"First Name","Last Name","Club","City","Year Born","Month Born","Category & age group","Category",{"$f":"\"Age at start of \"&Year_of_Meet","v":"Age at start of 2022"},"Category - Index 1","YOB  - Index 2","Category Fee Code","Elite Screening","Western Trials","Nat'l Trials","Indicate 'VIRTUAL' here","Age sub-cat"]
[1,null,null,{"$f":"IF(ISBLANK(C5),\"\",This_Clubs_Abbrev)","v":""},{"$f":"IF(ISBLANK(C5),\"\",This_Clubs_City)","v":""},null,null,{"$f":"IF(ISBLANK(I5),\"\",I5&IF(R5=0,\"\",\"  (\"&R5&\")\"))","v":""},null,{"$f":"IF(F5=0,0,Year_of_Meet-F5-1)","v":0},{"$f":"IF(ISBLANK(I5),0,MATCH(I5,WAG_Categories,0))","v":0},{"$f":"IF(F5=0,0,MATCH(F5,List_of_BirthYears,0))","v":0},{"$f":"IF(K5=0,0,INDEX(WAG_Fee_Codes,K5))","v":0},"No",null,"No",null,{"$f":"IF(K5+L5=0,0,INDEX(WAG_SubCategories,K5,L5))","v":0}]
[2,null,null,"","",null,null,"",null,0,0,0,0,"No",null,"No",null,0]
[3,null,null,"","",null,null,"",null,0,0,0,0,"No",null,"No",null,0]
[4,null,null,"","",null,null,"",null,0,0,0,0,"No",null,"No",null,0]
[5,null,null,"","",null,null,"",null,0,0,0,0,"No",null,"No",null,0]
[6,null,null,"","",null,null,"",null,0,0,0,0,"No",null,"No",null,0]
[7,null,null,"","",null,null,"",null,0,0,0,0,"No",null,"No",null,0]
[8,null,null,"","",null,null,"",null,0,0,0,0,"No",null,"No",null,0]
[9,null,null,"","",null,null,"",null,0,0,0,0,"No",null,"No",null,0]
[10,null,null,"","",null,null,"",null,0,0,0,0,"No",null,"No",null,0]
[11,null,null,"","",null,null,"",null,0,0,0,0,"No",null,"No",null,0]
[12,null,null,"","",null,null,"",null,0,0,0,0,"No",null,"No",null,0]
[13,null,null,"","",null,null,"",null,0,0,0,0,"No",null,"No",null,0]
[14,null,null,"","",null,null,"",null,0,0,0,0,"No",null,"No",null,0]
[15,null,null,"","",null,null,"",null,0,0,0,0,"No",null,"No",null,0]
[16,null,null,"","",null,null,"",null,0,0,0,0,"No",null,"No",null,0]
[17,null,null,"","",null,null,"",null,0,0,0,0,"No",null,"No",null,0]
[18,null,null,"","",null,null,"",null,0,0,0,0,"No",null,"No",null,0]
[19,null,null,"","",null,null,"",null,0,0,0,0,"No",null,"No",null,0]
[20,null,null,"","",null,null,"",null,0,0,0,0,"No",null,"No",null,0]
[21,null,null,"","",null,null,"",null,0,0,0,0,"No",null,"No",null,0]
[22,null,null,"","",null,null,"",null,0,0,0,0,"No",null,"No",null,0]
[23,null,null,"","",null,null,"",null,0,0,0,0,"No",null,"No",null,0]
[24,null,null,"","",null,null,"",null,0,0,0,0,"No",null,"No",null,0]
[25,null,null,"","",null,null,"",null,0,0,0,0,"No",null,"No",null,0]
[26,null,null,"","",null,null,"",null,0,0,0,0,"No",null,"No",null,0]
[27,null,null,"","",null,null,"",null,0,0,0,0,"No",null,"No",null,0]
[28,null,null,"","",null,null,"",null,0,0,0,0,"No",null,"No",null,0]
[29,null,null,"","",null,null,"",null,0,0,0,0,"No",null,"No",null,0]
[30,null,null,"","",null,null,"",null,0,0,0,0,"No",null,"No",null,0]
[31,null,null,"","",null,null,"",null,0,0,0,0,"No",null,"No",null,0]
[32,null,null,"","",null,null,"",null,0,0,0,0,"No",null,"No",null,0]
[33,null,null,{"$f":"IF(ISBLANK(C37),\"\",This_Clubs_Abbrev)","v":""},{"$f":"IF(ISBLANK(C37),\"\",This_Clubs_City)","v":""},null,null,{"$f":"IF(ISBLANK(I37),\"\",I37&IF(R37=0,\"\",\"  (\"&R37&\")\"))","v":""},null,{"$f":"IF(F37=0,0,Year_of_Meet-F37-1)","v":0},{"$f":"IF(ISBLANK(I37),0,MATCH(I37,WAG_Categories,0))","v":0},{"$f":"IF(F37=0,0,MATCH(F37,List_of_BirthYears,0))","v":0},{"$f":"IF(K37=0,0,INDEX(WAG_Fee_Codes,K37))","v":0},"No",null,"No",null,{"$f":"IF(K37+L37=0,0,INDEX(WAG_SubCategories,K37,L37))","v":0}]
[34,null,null,"","",null,null,"",null,0,0,0,0,"No",null,"No",null,0]
[35,null,null,"","",null,null,"",null,0,0,0,0,"No",null,"No",null,0]
[36,null,null,"","",null,null,"",null,0,0,0,0,"No",null,"No",null,0]
[37,null,null,"","",null,null,"",null,0,0,0,0,"No",null,"No",null,0]
[38,null,null,"","",null,null,"",null,0,0,0,0,"No",null,"No",null,0]
[39,null,null,"","",null,null,"",null,0,0,0,0,"No",null,"No",null,0]
[40,null,null,"","",null,null,"",null,0,0,0,0,"No",null,"No",null,0]
[41,null,null,"","",null,null,"",null,0,0,0,0,"No",null,"No",null,0]
[42,null,null,"","",null,null,"",null,0,0,0,0,"No",null,"No",null,0]
[43,null,null,"","",null,null,"",null,0,0,0,0,"No",null,"No",null,0]
[44,null,null,"","",null,null,"",null,0,0,0,0,"No",null,"No",null,0]
[45,null,null,"","",null,null,"",null,0,0,0,0,"No",null,"No",null,0]
[46,null,null,"","",null,null,"",null,0,0,0,0,"No",null,"No",null,0]
[47,null,null,"","",null,null,"",null,0,0,0,0,"No",null,"No",null,0]
[48,null,null,"","",null,null,"",null,0,0,0,0,"No",null,"No",null,0]
[49,null,null,"","",null,null,"",null,0,0,0,0,"No",null,"No",null,0]
[50,null,null,"","",null,null,"",null,0,0,0,0,"No",null,"No",null,0]
[51,null,null,"","",null,null,"",null,0,0,0,0,"No",null,"No",null,0]
[52,null,null,"","",null,null,"",null,0,0,0,0,"No",null,"No",null,0]
[53,null,null,"","",null,null,"",null,0,0,0,0,"No",null,"No",null,0]
[54,null,null,"","",null,null,"",null,0,0,0,0,"No",null,"No",null,0]
[55,null,null,"","",null,null,"",null,0,0,0,0,"No",null,"No",null,0]
[56,null,null,"","",null,null,"",null,0,0,0,0,"No",null,"No",null,0]
[57,null,null,"","",null,null,"",null,0,0,0,0,"No",null,"No",null,0]
[58,null,null,"","",null,null,"",null,0,0,0,0,"No",null,"No",null,0]
[59,null,null,"","",null,null,"",null,0,0,0,0,"No",null,"No",null,0]
[60,null,null,"","",null,null,"",null,0,0,0,0,"No",null,"No",null,0]

{"sheet":"WAG Coaches","index":4,"n_rows":33,"n_cols":25,"rows_kept":33,"cut":false,"hidden":false,"merged":[[1,6,2,24],[4,2,4,5],[7,3,8,3],[7,4,8,4],[7,6,7,24],[3,6,3,24],[4,6,4,24],[5,6,5,24]]}
[null,{"$f":"Meet_Name","v":"Queen City Invitational 2022"},null,null,null,null,null,null,null,null,null,null,null,null,null,null,null,null,null,null,null,null,null,{"$f":"Meet_Dates","v":"February 25, 26, 27, 2022"}]
[null,"CLUB REGISTRATION - WAG COACHES",null,null,null,null,"Indicate names of your coaches and the levels they will be coaching."]
[]
[null,null,null,null,null,null,"*VERY IMPORTANT* "]
[null,"Club:  ",{"$f":"This_Clubs_FullName","v":""},null,null,null,"Please complete fully.  No registration will be considered complete without "]
[null,null,null,null,null,null,"this information."]
[null,null,"Please spell names correctly."]
[null,null,null,"Certified Coaching\nLevel",null,null,"Please mark the Levels with \"X\" if known."]
[null,null,"COACHES",null,null,"Level","InterClub Level 1","InterClub Level 2","InterClub Level 3","InterClub Level 4","Xcel Bronze","Xcel   Silver","Xcel     Gold","Xcel Platinum","Xcel Diamond","CCP 3","CCP 4","CCP 5","CCP 6","CCP 7","CCP 8","CCP 9","CCP 10","ASPIRE","HP"]
[null,1]
[null,2]
[null,3]
[null,4]
[null,5]
[null,6]
[null,7]
[null,8]
[null,9]
[null,10]
[null,11]
[null,12]
[null,13]
[null,14]
[null,15]
[null,16]
[null,17]
[null,18]
[null,19]
[null,20]
[null,21]
[null,22]
[null,23]
[null,24]

{"sheet":"MAG Gymnasts","index":5,"n_rows":64,"n_cols":26,"rows_kept":64,"cut":false,"hidden":false,"merged":[[1,3,1,8]]}
[null,{"$f":"Meet_Name","v":"Queen City Invitational 2022"},null,"CLUB REGISTRATIONS - MAG GYMNASTS",null,null,null,null,null,null,null,"Hide Col.","Hide Col.","Hide Col.",null,null,null,null,"Hide Col."]
[null,{"$f":"Meet_Dates","v":"February 25, 26, 27, 2022"},"Club: ",{"$f":"This_Clubs_FullName","v":""}]
[null,"xx"]
[null,"First Name","Last Name","Club","City","Year Born","Month Born","Birth Month","Category & age group","Category",{"$f":"\"Age at start of \"&Year_of_Meet","v":"Age at start of 2022"},"Category - Index 1","YOB  - Index 2","Category Fee Code","Elite Screening","Western Trials","Nat'l Trials","Indicate 'VIRTUAL'  here","Age sub-cat","YOB & Month","Age in years","Birth Month","Years (YY)","12-M","Months (MM)","Age for sorting"]
[1,null,null,{"$f":"IF(ISBLANK(C5),\"\",This_Clubs_Abbrev)","v":""},{"$f":"IF(ISBLANK(C5),\"\",This_Clubs_City)","v":""},null,null,null,null,null,{"$f":"IF(F5=0,0,Year_of_Meet-F5-1)","v":0},{"$f":"IF(ISBLANK(J5),0,MATCH(J5,MAG_Categories,0))","v":0},{"$f":"IF(F5=0,0,MATCH(F5,List_of_BirthYears,0))","v":0},"No",null,null,"No",null,{"$f":"IF(L5+M5=0,0,INDEX(MAG_SubCategories,L5,M5))","v":0},{"$f":"(F5)+ (V5/100)","v":0},{"$f":"IF(F5=0,0,Year_of_Meet-F5)","v":0},{"$f":"IF(H5=\"\",0,MATCH(H5,List_of_Months,0))","v":0},{"$f":"IF(U5<10,\"0\",\"\")&U5","v":"00"},{"$f":"12-V5","v":12},{"$f":"IF(12-X5<10,\"0\",\"\")&(12-X5)","v":"00"},{"$f":"U5+(V5/100)","v":0}]
[2,null,null,"","",null,null,null,null,null,0,0,0,"No",null,null,"No",null,0,0,0,0,"00",12,"00",0]
[3,null,null,"","",null,null,null,null,null,0,0,0,"No",null,null,"No",null,0,0,0,0,"00",12,"00",0]
[4,null,null,"","",null,null,null,null,null,0,0,0,"No",null,null,"No",null,0,0,0,0,"00",12,"00",0]
[5,null,null,"","",null,null,null,null,null,0,0,0,"No",null,null,"No",null,0,0,0,0,"00",12,"00",0]
[6,null,null,"","",null,null,null,null,null,0,0,0,"No",null,null,"No",null,0,0,0,0,"00",12,"00",0]
[7,null,null,"","",null,null,null,null,null,0,0,0,"No",null,null,"No",null,0,0,0,0,"00",12,"00",0]
[8,null,null,"","",null,null,null,null,null,0,0,0,"No",null,null,"No",null,0,0,0,0,"00",12,"00",0]
[9,null,null,"","",null,null,null,null,null,0,0,0,"No",null,null,"No",null,0,0,0,0,"00",12,"00",0]
[10,null,null,"","",null,null,null,null,null,0,0,0,"No",null,null,"No",null,0,0,0,0,"00",12,"00",0]
[11,null,null,"","",null,null,null,null,null,0,0,0,"No",null,null,"No",null,0,0,0,0,"00",12,"00",0]
[12,null,null,"","",null,null,null,null,null,0,0,0,"No",null,null,"No",null,0,0,0,0,"00",12,"00",0]
[13,null,null,"","",null,null,null,null,null,0,0,0,"No",null,null,"No",null,0,0,0,0,"00",12,"00",0]
[14,null,null,"","",null,null,null,null,null,0,0,0,"No",null,null,"No",null,0,0,0,0,"00",12,"00",0]
[15,null,null,"","",null,null,null,null,null,0,0,0,"No",null,null,"No",null,0,0,0,0,"00",12,"00",0]
[16,null,null,"","",null,null,null,null,null,0,0,0,"No",null,null,"No",null,0,0,0,0,"00",12,"00",0]
[17,null,null,"","",null,null,null,null,null,0,0,0,"No",null,null,"No",null,0,0,0,0,"00",12,"00",0]
[18,null,null,"","",null,null,null,null,null,0,0,0,"No",null,null,"No",null,0,0,0,0,"00",12,"00",0]
[19,null,null,"","",null,null,null,null,null,0,0,0,"No",null,null,"No",null,0,0,0,0,"00",12,"00",0]
[20,null,null,"","",null,null,null,null,null,0,0,0,"No",null,null,"No",null,0,0,0,0,"00",12,"00",0]
[21,null,null,"","",null,null,null,null,null,0,0,0,"No",null,null,"No",null,0,0,0,0,"00",12,"00",0]
[22,null,null,"","",null,null,null,null,null,0,0,0,"No",null,null,"No",null,0,0,0,0,"00",12,"00",0]
[23,null,null,"","",null,null,null,null,null,0,0,0,"No",null,null,"No",null,0,0,0,0,"00",12,"00",0]
[24,null,null,"","",null,null,null,null,null,0,0,0,"No",null,null,"No",null,0,0,0,0,"00",12,"00",0]
[25,null,null,"","",null,null,null,null,null,0,0,0,"No",null,null,"No",null,0,0,0,0,"00",12,"00",0]
[26,null,null,"","",null,null,null,null,null,0,0,0,"No",null,null,"No",null,0,0,0,0,"00",12,"00",0]
[27,null,null,"","",null,null,null,null,null,0,0,0,"No",null,null,"No",null,0,0,0,0,"00",12,"00",0]
[28,null,null,"","",null,null,null,null,null,0,0,0,"No",null,null,"No",null,0,0,0,0,"00",12,"00",0]
[29,null,null,"","",null,null,null,null,null,0,0,0,"No",null,null,"No",null,0,0,0,0,"00",12,"00",0]
[30,null,null,"","",null,null,null,null,null,0,0,0,"No",null,null,"No",null,0,0,0,0,"00",12,"00",0]
[31,null,null,"","",null,null,null,null,null,0,0,0,"No",null,null,"No",null,0,0,0,0,"00",12,"00",0]
[32,null,null,"","",null,null,null,null,null,0,0,0,"No",null,null,"No",null,0,0,0,0,"00",12,"00",0]
[33,null,null,{"$f":"IF(ISBLANK(C37),\"\",This_Clubs_Abbrev)","v":""},{"$f":"IF(ISBLANK(C37),\"\",This_Clubs_City)","v":""},null,null,null,null,null,{"$f":"IF(F37=0,0,Year_of_Meet-F37-1)","v":0},{"$f":"IF(ISBLANK(J37),0,MATCH(J37,MAG_Categories,0))","v":0},{"$f":"IF(F37=0,0,MATCH(F37,List_of_BirthYears,0))","v":0},"No",null,null,"No",null,{"$f":"IF(L37+M37=0,0,INDEX(MAG_SubCategories,L37,M37))","v":0},{"$f":"(F37)+ (V37/100)","v":0},{"$f":"IF(F37=0,0,Year_of_Meet-F37)","v":0},{"$f":"IF(H37=\"\",0,MATCH(H37,List_of_Months,0))","v":0},{"$f":"IF(U37<10,\"0\",\"\")&U37","v":"00"},{"$f":"12-V37","v":12},{"$f":"IF(12-X37<10,\"0\",\"\")&(12-X37)","v":"00"},{"$f":"U37+(V37/100)","v":0}]
[34,null,null,"","",null,null,null,null,null,0,0,0,"No",null,null,"No",null,0,0,0,0,"00",12,"00",0]
[35,null,null,"","",null,null,null,null,null,0,0,0,"No",null,null,"No",null,0,0,0,0,"00",12,"00",0]
[36,null,null,"","",null,null,null,null,null,0,0,0,"No",null,null,"No",null,0,0,0,0,"00",12,"00",0]
[37,null,null,"","",null,null,null,null,null,0,0,0,"No",null,null,"No",null,0,0,0,0,"00",12,"00",0]
[38,null,null,"","",null,null,null,null,null,0,0,0,"No",null,null,"No",null,0,0,0,0,"00",12,"00",0]
[39,null,null,"","",null,null,null,null,null,0,0,0,"No",null,null,"No",null,0,0,0,0,"00",12,"00",0]
[40,null,null,"","",null,null,null,null,null,0,0,0,"No",null,null,"No",null,0,0,0,0,"00",12,"00",0]
[41,null,null,"","",null,null,null,null,null,0,0,0,"No",null,null,"No",null,0,0,0,0,"00",12,"00",0]
[42,null,null,"","",null,null,null,null,null,0,0,0,"No",null,null,"No",null,0,0,0,0,"00",12,"00",0]
[43,null,null,"","",null,null,null,null,null,0,0,0,"No",null,null,"No",null,0,0,0,0,"00",12,"00",0]
[44,null,null,"","",null,null,null,null,null,0,0,0,"No",null,null,"No",null,0,0,0,0,"00",12,"00",0]
[45,null,null,"","",null,null,null,null,null,0,0,0,"No",null,null,"No",null,0,0,0,0,"00",12,"00",0]
[46,null,null,"","",null,null,null,null,null,0,0,0,"No",null,null,"No",null,0,0,0,0,"00",12,"00",0]
[47,null,null,"","",null,null,null,null,null,0,0,0,"No",null,null,"No",null,0,0,0,0,"00",12,"00",0]
[48,null,null,"","",null,null,null,null,null,0,0,0,"No",null,null,"No",null,0,0,0,0,"00",12,"00",0]
[49,null,null,"","",null,null,null,null,null,0,0,0,"No",null,null,"No",null,0,0,0,0,"00",12,"00",0]
[50,null,null,"","",null,null,null,null,null,0,0,0,"No",null,null,"No",null,0,0,0,0,"00",12,"00",0]
[51,null,null,"","",null,null,null,null,null,0,0,0,"No",null,null,"No",null,0,0,0,0,"00",12,"00",0]
[52,null,null,"","",null,null,null,null,null,0,0,0,"No",null,null,"No",null,0,0,0,0,"00",12,"00",0]
[53,null,null,"","",null,null,null,null,null,0,0,0,"No",null,null,"No",null,0,0,0,0,"00",12,"00",0]
[54,null,null,"","",null,null,null,null,null,0,0,0,"No",null,null,"No",null,0,0,0,0,"00",12,"00",0]
[55,null,null,"","",null,null,null,null,null,0,0,0,"No",null,null,"No",null,0,0,0,0,"00",12,"00",0]
[56,null,null,"","",null,null,null,null,null,0,0,0,"No",null,null,"No",null,0,0,0,0,"00",12,"00",0]
[57,null,null,"","",null,null,null,null,null,0,0,0,"No",null,null,"No",null,0,0,0,0,"00",12,"00",0]
[58,null,null,"","",null,null,null,null,null,0,0,0,"No",null,null,"No",null,0,0,0,0,"00",12,"00",0]
[59,null,null,"","",null,null,null,null,null,0,0,0,"No",null,null,"No",null,0,0,0,0,"00",12,"00",0]
[60,null,null,"","",null,null,null,null,null,0,0,0,"No",null,null,"No",null,0,0,0,0,"00",12,"00",0]

{"sheet":"MAG Coaches","index":6,"n_rows":35,"n_cols":15,"rows_kept":35,"cut":false,"hidden":false,"merged":[[7,7,7,17],[9,7,9,13],[3,2,3,5],[9,3,10,3],[9,4,10,4],[5,7,5,17]]}
[null,{"$f":"Meet_Name","v":"Queen City Invitational 2022"},null,null,null,null,null,null,null,null,null,null,null,null,{"$f":"Meet_Dates","v":"February 25, 26, 27, 2022"}]
[null,"CLUB REGISTRATION - MAG COACHES"]
[]
[null,"Club:  ",{"$f":"This_Clubs_FullName","v":""},null,null,null,null,"Indicate names of your coaches and the levels they will be coaching.",null,"Indicate names of your coaches and the levels they will be coaching."]
[]
[null,null,null,null,null,null,null,"*VERY IMPORTANT* "]
[null,null,null,null,null,null,null,"Please complete fully.  No registration will be considered complete without ",null,"Please complete fully.  No registration will be considered complete without "]
[null,null,null,null,null,null,null,"this information."]
[null,null,"Please spell names correctly."]
[null,null,null,"Certified Coaching\nLevel",null,null,null,"Please mark the Levels with \"X\" if known."]
[null,null,"COACHES",null,null,null,"Level","InterClub JO-3","JO 4","JO 5","Prov-3","Prov-4","Prov-5","Nat'l Open"]
[null,1]
[null,2]
[null,3]
[null,4]
[null,5]
[null,6]
[null,7]
[null,8]
[null,9]
[null,10]
[null,11]
[null,12]
[null,13]
[null,14]
[null,15]
[null,16]
[null,17]
[null,18]
[null,19]
[null,20]
[null,21]
[null,22]
[null,23]
[null,24]

{"sheet":"Pswd","index":7,"n_rows":6,"n_cols":2,"rows_kept":6,"cut":false,"hidden":true,"merged":[[2,0,2,5],[5,1,5,4]]}
[]
[]
["PASSWORD FOR ALL SHEETS"]
[]
[]
[null,"QCGC455"]